bitfinex/quotes_ETHUSD_20251009
["timestamp","ask_amount","ask_price","bid_price","bid_amount"]
[1760020398617,0.1152,4327.6,4326.8,0.1152]
[1760020398823,0.1152,4327.6,4326.9,2.31112343]
[1760020399031,0.1152,4327.6,4327.4,2.3108264]
[1760020399360,14.21351413,4328.9,4327.6,2.31070245]
[1760020399661,14.21551413,4329.5,4328.2,2.31039591]
[1760020399844,0.1152,4328.3,4328.0,2.403]
[1760020400162,0.1152,4328.3,4328.1,2.479]
[1760020400330,0.1152,4328.3,4327.1,0.4709]
[1760020400331,2.31042927,4328.2,4327.1,2.31099276]
[1760020400519,2.31042927,4328.2,4326.9,0.30689134]
[1760020400520,0.1152,4327.4,4327.2,5.4]
[1760020400727,0.1152,4327.9,4327.3,0.4709]
[1760020400955,0.1152,4327.9,4327.7,2.310648]
[1760020401152,0.1152,4327.9,4327.8,0.4709]
[1760020401356,0.1152,4327.9,4327.8,2.31064282]
[1760020401534,0.1152,4327.9,4327.8,2.78154282]
[1760020401746,2.42578943,4327.9,4327.2,0.1152]
[1760020401923,2.42578943,4327.9,4326.2,0.2196]
[1760020401924,2.31086039,4327.4,4326.2,0.2196]
[1760020402123,14.41151413,4327.9,4326.4,3.229]
[1760020402318,0.099,4328.4,4326.5,0.4709]
[1760020402559,1.92,4329.0,4326.7,2.31123026]
[1760020402725,1.92,4329.0,4327.8,2.31063153]
[1760020402938,1.92,4329.0,4327.9,0.02310589]
[1760020403270,2.30988766,4329.3,4328.5,2.31025045]
[1760020403471,0.002,4329.5,4328.6,0.02310215]
[1760020403774,0.002,4329.5,4328.8,2.31010903]
[1760020404068,0.002,4329.5,4329.3,2.3098021]
[1760020404266,0.002,4329.5,4328.8,0.84011107]
[1760020404432,0.002,4329.5,4329.4,2.30978888]
[1760020404956,0.002,4329.5,4329.3,6.707]
[1760020405164,0.002,4329.5,4329.4,2.30978888]
[1760020405360,0.002,4329.5,4329.4,2.78068888]
[1760020405958,0.002,4329.5,4329.4,0.4709]
[1760020406271,0.002,4329.5,4329.3,6.707]
[1760020406797,0.002,4329.5,4328.9,0.4709]
[1760020407092,2.31005567,4328.9,4327.5,2.403]
[1760020407239,2.31026769,4328.6,4327.6,2.228]
[1760020407439,2.31026769,4328.6,4327.5,2.403]
[1760020407440,14.21351413,4329.0,4327.2,2.78184808]
[1760020407639,14.21351413,4328.4,4327.3,1.64]
[1760020407983,2.31058901,4328.0,4327.3,3.467]
[1760020408151,14.21351413,4328.5,4327.3,3.498]
[1760020408483,14.21351413,4328.5,4327.2,4.373]
[1760020408776,14.21351413,4327.9,4326.3,0.001]
[1760020408990,2.31090014,4327.4,4326.4,8.189]
[1760020409143,14.41151413,4327.9,4326.4,0.88462]
[1760020409348,14.41151413,4327.9,4326.3,0.001]
[1760020409349,14.21351413,4327.3,4326.3,0.001]
[1760020409543,2.403,4327.2,4326.3,0.001]
[1760020409890,16.52490466,4326.4,4326.3,0.001]
[1760020410090,1.92,4326.5,4326.3,0.001]
[1760020410294,2.41039053,4326.4,4326.3,0.001]
[1760020411164,0.099,4326.4,4326.3,0.001]
[1760020411372,2.41039053,4326.4,4326.3,0.001]
[1760020411875,1.92,4326.5,4326.3,0.001]
[1760020412073,0.6336,4326.9,4326.3,0.001]
[1760020412272,2.31117685,4326.8,4326.3,0.001]
[1760020412472,2.31139053,4326.4,4326.3,0.001]
[1760020412688,1.92,4326.5,4326.3,0.001]
[1760020412889,2.31139053,4326.4,4326.3,0.001]
[1760020413589,2.41039053,4326.4,4326.3,0.001]
[1760020413892,2.31160425,4326.0,4325.9,0.001]
[1760020414058,19.07871838,4326.0,4325.9,0.001]
[1760020414254,19.07871838,4326.0,4325.4,0.001]
[1760020414255,4.86547145,4325.5,4325.4,1e-08]
[1760020414487,4.86547145,4325.5,4322.0,0.2257]
[1760020414488,2.6688,4325.4,4322.5,0.1152]
[1760020414703,2.6688,4325.4,4322.1,0.4366]
[1760020414704,14.21351413,4323.6,4322.1,0.4366]
[1760020414853,2.31305783,4323.3,4322.1,4.0816]
[1760020415058,0.0885,4323.7,4322.2,2.74435047]
[1760020415366,2.31289055,4323.6,4322.3,0.02313583]
[1760020415583,0.0885,4323.7,4322.3,2.31358304]
[1760020415782,0.0885,4323.7,4322.4,2.31351505]
[1760020415984,0.0885,4323.7,4322.8,2.31331241]
[1760020416186,14.21271413,4323.8,4322.9,0.02313261]
[1760020416352,6.806,4324.0,4322.9,0.02313261]
[1760020416695,6.806,4324.0,4322.2,8.91473]
[1760020416696,6.707,4324.0,4323.0,2.31318814]
[1760020416909,0.0885,4324.1,4323.1,0.02313154]
[1760020417055,14.21351413,4324.9,4323.2,0.02313101]
[1760020417255,14.21351413,4324.9,4323.1,2.74974687]
[1760020417456,14.21351413,4324.9,4323.1,0.4366]
[1760020417686,14.21351413,4324.9,4323.2,0.55686]
[1760020417890,14.21351413,4324.9,4324.2,2.31254336]
[1760020418110,1.92,4325.0,4324.2,2.31252158]
[1760020418308,1.92,4325.0,4323.6,0.4366]
[1760020418682,2.31231285,4324.7,4323.7,2.31283391]
[1760020418978,2.31268097,4324.0,4323.2,2.31306329]
[1760020419288,0.1866,4324.2,4322.3,0.4366]
[1760020419610,2.31283391,4323.7,4322.4,2.404]
[1760020419777,14.21351413,4323.9,4321.2,0.4366]
[1760020419778,14.21351413,4323.3,4321.2,0.4366]
[1760020419978,2.31324835,4323.0,4321.2,0.4366]
[1760020420174,2.31320967,4323.0,4321.8,2.3138468]
[1760020420426,0.099,4323.1,4321.3,3.526]
[1760020420721,14.21351413,4323.3,4322.6,2.31340984]
[1760020420939,0.7221,4324.1,4322.7,0.02313368]
[1760020420940,0.0885,4324.1,4322.7,0.02313368]
[1760020421081,0.0885,4324.1,4323.1,2.3131502]
[1760020421283,0.0885,4324.1,4323.5,2.31292594]
[1760020421504,2.31223098,4324.9,4323.9,2.31268024]
[1760020421505,16.71231257,4324.9,4323.9,2.31268024]
[1760020421812,16.71231257,4324.9,4323.4,4.673]
[1760020421813,1.92,4324.8,4323.4,4.673]
[1760020422029,14.21351413,4325.6,4323.9,2.31269525]
[1760020422319,14.21351413,4325.6,4323.5,1.13751807]
[1760020422320,1.92,4325.5,4324.5,2.31236902]
[1760020422493,14.21351413,4325.0,4323.5,0.70091807]
[1760020422698,16.5256978,4325.0,4323.6,3.126]
[1760020422904,16.5256978,4325.0,4323.2,0.4366]
[1760020422905,14.21351413,4325.0,4323.2,0.4366]
[1760020423434,0.0885,4324.9,4323.3,2.405]
[1760020423581,0.1875,4324.9,4323.4,0.02312994]
[1760020423779,0.0885,4324.9,4324.0,2.31262249]
[1760020424127,14.21351413,4325.0,4323.9,0.02312726]
[1760020424336,14.21351413,4325.0,4324.3,2.31246005]
[1760020424620,14.21351413,4325.0,4323.6,0.4687]
[1760020424923,0.1152,4323.9,4323.5,2.66206892]
[1760020425225,0.1152,4323.5,4323.2,5.397]
[1760020425518,0.1152,4323.5,4323.2,0.5397]
[1760020425719,0.1152,4323.5,4323.1,7.835]
[1760020426022,2.31272387,4324.0,4322.6,2.31341536]
[1760020426189,0.1152,4323.2,4322.7,5.243]
[1760020426386,0.1152,4323.2,4323.1,2.31315491]
[1760020426799,0.1152,4323.2,4323.1,2.33628645]
[1760020427004,0.1152,4323.2,4323.0,2.31319075]
[1760020427325,0.1152,4323.2,4318.9,0.37419928]
[1760020427326,0.1152,4323.2,4322.5,2.42866293]
[1760020427492,14.21351413,4323.2,4321.9,2.405]
[1760020427687,14.21351413,4323.2,4321.1,3.1247]
[1760020427688,0.1152,4322.5,4321.1,3.1247]
[1760020428020,0.1152,4321.7,4321.6,2.31395779]
[1760020428518,0.1152,4321.7,4321.6,2.78265779]
[1760020428725,11.93319285,4324.9,4321.6,2.78265779]
[1760020428726,0.1152,4322.4,4321.6,0.5839]
[1760020428889,0.1152,4322.4,4322.3,2.31358304]
[1760020429086,0.1152,4322.4,4322.2,6.251]
[1760020429327,1.92,4324.0,4321.7,6.709]
[1760020429623,0.1152,4322.4,4321.9,2.31379717]
[1760020429828,1.92,4324.2,4322.3,0.2285]
[1760020429991,14.21351413,4324.3,4323.6,2.31287632]
[1760020430191,14.21351413,4324.3,4323.7,2.31282885]
[1760020430400,14.31251413,4325.0,4323.8,2.31275844]
[1760020430604,14.31251413,4325.0,4323.6,6.641]
[1760020430807,0.0885,4325.3,4323.7,0.02312833]
[1760020431300,14.21351413,4325.8,4324.9,2.31215149]
[1760020431485,14.21351413,4325.8,4323.8,0.4687]
[1760020431486,0.002,4324.9,4324.5,4.07]
[1760020431689,0.002,4324.9,4324.0,0.2285]
[1760020431897,0.002,4324.9,4324.2,4.62513296]
[1760020432099,0.002,4324.9,4324.2,0.7622133]
[1760020432403,0.002,4324.9,4324.4,2.31245953]
[1760020432720,0.002,4324.9,4324.5,0.02312406]
[1760020432891,0.002,4324.9,4324.8,2.31224565]
[1760020433103,0.002,4324.9,4324.8,2.3353681]
[1760020433301,0.002,4324.9,4324.8,2.8040681]
[1760020433535,0.002,4324.9,4324.8,4.25478772]
[1760020433733,0.4717602,4326.8,4326.7,2.31123026]
[1760020434103,0.4717602,4326.8,4326.5,2.3113371]
[1760020434306,0.4717602,4326.8,4326.0,0.4687]
[1760020434816,0.4717602,4326.8,4326.2,2.31149738]
[1760020435032,2.31080771,4327.5,4326.5,2.31133384]
[1760020435234,2.41186084,4327.4,4326.4,2.31138086]
[1760020435439,0.101,4327.4,4325.4,0.4687]
[1760020435604,0.101,4327.4,4325.6,2.31181801]
[1760020435810,0.099,4327.9,4325.7,0.02311764]
[1760020436010,0.099,4327.9,4325.9,2.31165768]
[1760020436337,0.099,4327.9,4326.9,2.31107163]
[1760020436537,0.099,4327.9,4326.4,5.585]
[1760020436746,2.31095384,4327.3,4326.4,5.585]
[1760020436939,2.31109001,4327.0,4325.2,0.4687]
[1760020437126,2.31108919,4327.0,4325.9,2.31162924]
[1760020437439,3.855,4327.8,4326.0,0.02311604]
[1760020437732,3.855,4327.8,4326.7,2.31119036]
[1760020438032,2.31076082,4327.6,4326.7,2.31119036]
[1760020438236,0.101,4327.7,4325.4,2.3118817]
[1760020438437,2.3108564,4327.4,4325.3,0.441]
[1760020438733,0.101,4327.3,4326.3,2.31144353]
[1760020438938,2.31081485,4327.5,4326.4,2.31135306]
[1760020439142,1.92,4327.4,4326.6,2.31127733]
[1760020439318,1.9192,4327.4,4326.8,2.31114955]
[1760020439520,1.9192,4327.4,4326.4,2.31138112]
[1760020439717,0.099,4327.9,4326.4,0.70033811]
[1760020440039,0.099,4327.9,4324.9,2.31216277]
[1760020440040,0.1152,4326.7,4326.0,0.1152]
[1760020440207,0.101,4327.0,4323.7,2.31280836]
[1760020440403,0.101,4327.0,4324.9,0.1152]
[1760020440404,0.1152,4325.6,4324.9,0.1152]
[1760020440623,0.1152,4325.0,4324.9,2.31219218]
[1760020440852,0.1152,4325.0,4323.6,2.3128874]
[1760020440853,16.63201916,4325.6,4323.7,2.31281269]
[1760020441060,14.22801916,4324.9,4324.0,2.31266415]
[1760020441366,1.92,4325.5,4323.4,0.396]
[1760020441532,1.92,4324.8,4322.5,0.441]
[1760020441736,1.92,4324.8,4322.6,2.72813422]
[1760020441945,3.059,4325.4,4322.9,2.31326193]
[1760020442127,2.958,4325.4,4324.7,2.31225138]
[1760020442323,1.92,4325.7,4324.9,2.31218127]
[1760020442635,1.92,4325.7,4325.0,2.31209182]
[1760020442837,0.101,4325.6,4323.6,2.31284331]
[1760020443023,0.101,4325.6,4323.7,4.81]
[1760020443229,14.22801916,4324.9,4323.0,0.27773956]
[1760020443556,0.101,4324.8,4323.6,2.31284173]
[1760020443720,0.101,4324.8,4322.7,0.441]
[1760020443922,2.021,4324.8,4322.8,2.789]
[1760020444125,2.31255897,4324.3,4322.8,2.789]
[1760020444354,2.021,4324.8,4322.9,3.592]
[1760020444556,0.101,4324.8,4323.1,2.31315491]
[1760020444861,2.31259498,4324.2,4322.9,0.323]
[1760020445161,2.31259498,4324.2,4322.3,0.2285]
[1760020445162,2.31251712,4324.3,4323.0,0.46413208]
[1760020445331,14.22801916,4324.3,4322.3,0.6695]
[1760020445523,0.101,4324.2,4322.4,2.811]
[1760020445724,0.101,4324.2,4322.0,0.2332]
[1760020445725,0.101,4324.2,4322.5,4.167]
[1760020445937,1.92,4324.7,4322.0,0.2332]
[1760020446136,1.92,4324.7,4320.8,4.36284356]
[1760020446137,14.22801916,4323.3,4321.9,0.02313797]
[1760020446368,2.31330823,4322.9,4321.3,3.75]
[1760020446523,2.31335932,4322.8,4321.8,2.31381625]
[1760020446721,0.864,4323.4,4321.9,0.02313797]
[1760020447054,14.22801916,4324.0,4322.4,2.31351727]
[1760020447055,1.92,4323.7,4322.4,2.31351727]
[1760020447255,1.92,4323.7,4321.8,0.441]
[1760020447256,0.1886,4323.9,4322.5,0.02313475]
[1760020447442,0.0905,4324.3,4322.6,0.02313422]
[1760020448122,0.099,4324.2,4322.3,0.441]
[1760020448359,0.0905,4324.3,4321.1,0.001]
[1760020448360,2.31314414,4323.2,4321.7,2.31390425]
[1760020448546,2.41192789,4323.6,4321.8,0.27549042]
[1760020448746,0.099,4323.6,4322.1,2.31368846]
[1760020449061,2.31324744,4323.0,4322.1,2.31368846]
[1760020449264,0.099,4323.6,4322.2,0.02313636]
[1760020449556,14.22801916,4323.8,4322.7,2.31332352]
[1760020449759,0.099,4323.7,4321.5,0.441]
[1760020449935,2.31319311,4323.1,4322.1,2.3136779]
[1760020450134,0.099,4323.6,4322.7,2.31336068]
[1760020450336,2.31287604,4323.7,4322.8,2.3133128]
[1760020450536,0.002,4323.8,4321.7,0.441]
[1760020450761,14.22801916,4323.5,4321.7,0.441]
[1760020450966,0.1152,4322.3,4321.9,2.31375466]
[1760020451259,0.1152,4322.3,4322.0,2.31374228]
[1760020451562,0.1152,4322.3,4321.8,5.104]
[1760020451785,0.1152,4322.3,4321.6,0.1152]
[1760020451786,0.1152,4322.3,4321.9,0.52192]
[1760020451959,0.1152,4321.9,4321.7,2.3138998]
[1760020452166,0.1152,4321.9,4321.5,8.413]
[1760020452167,2.31337,4322.7,4321.5,8.413]
[1760020452458,0.1152,4321.7,4321.6,2.31395095]
[1760020452628,0.1152,4321.7,4321.6,2.31395779]
[1760020452954,0.1152,4321.7,4321.6,10.32405874]
[1760020453346,0.1152,4321.7,4321.6,1.30410095]
[1760020453548,0.1152,4321.7,4321.1,0.001]
[1760020453741,0.1152,4321.2,4321.1,0.001]
[1760020455061,0.1032,4321.2,4321.1,0.001]
[1760020456466,0.1032,4321.2,4321.1,2.31522554]
[1760020456662,0.1032,4321.2,4321.1,2.69678575]
[1760020457085,0.1032,4321.2,4321.1,0.001]
[1760020457272,2.31390125,4321.8,4321.1,0.001]
[1760020457465,0.099,4321.9,4321.1,0.001]
[1760020457690,14.22801916,4321.7,4321.1,0.001]
[1760020457895,2.31395779,4321.6,4321.1,0.001]
[1760020458187,1.92,4321.5,4321.1,0.001]
[1760020458393,2.31417198,4321.2,4321.1,0.001]
[1760020458715,9.02117198,4321.2,4321.1,0.001]
[1760020458993,9.12017198,4321.2,4321.1,0.001]
[1760020459202,9.12017198,4321.2,4320.5,1e-08]
[1760020459203,2.31438622,4320.8,4320.5,1e-08]
[1760020459412,17.17611251,4320.6,4320.5,1e-08]
[1760020459698,14.22801916,4320.6,4320.5,1e-08]
[1760020460063,1.92,4321.2,4320.5,1e-08]
[1760020460064,14.32701916,4321.3,4320.5,1e-08]
[1760020460401,14.22801916,4321.0,4320.5,1e-08]
[1760020460708,0.099,4321.8,4320.5,1e-08]
[1760020460860,14.22801916,4322.3,4320.6,0.80775764]
[1760020461063,14.22801916,4323.0,4320.7,2.31443978]
[1760020461258,14.22801916,4321.5,4320.5,2.31453661]
[1760020461592,14.22801916,4320.8,4320.5,1e-08]
[1760020461768,2.31449335,4320.6,4320.5,1e-08]
[1760020462192,2.41349335,4320.6,4320.5,1e-08]
[1760020462394,16.64151251,4320.6,4320.5,1e-08]
[1760020462761,17.27511251,4320.6,4320.5,1e-08]
[1760020462994,16.64151251,4320.6,4320.5,1e-08]
[1760020463209,0.099,4320.6,4320.5,1e-08]
[1760020463382,2.41349335,4320.6,4320.5,1e-08]
[1760020463784,2.41269335,4320.6,4320.5,1e-08]
[1760020463989,14.22801916,4320.8,4320.5,1e-08]
[1760020464184,1.92,4321.3,4320.5,1e-08]
[1760020464396,1.92,4321.1,4320.5,1e-08]
[1760020464608,2.31449335,4320.6,4320.5,1e-08]
[1760020465518,4.86809335,4320.6,4320.5,1e-08]
[1760020465813,4.96549335,4320.6,4320.5,1e-08]
[1760020466023,4.33189335,4320.6,4320.5,1e-08]
[1760020466204,13.44689335,4320.6,4320.5,1e-08]
[1760020466390,0.6336,4320.5,4320.3,1e-08]
[1760020466715,4.23460049,4320.4,4320.3,1e-08]
[1760020467018,4.96560049,4320.4,4320.3,1e-08]
[1760020467200,4.33200049,4320.4,4320.3,1e-08]
[1760020467401,2.94836123,4320.1,4319.4,2.09035813]
[1760020467711,4.23468339,4320.3,4319.4,2.09035813]
[1760020467712,2.31508276,4319.5,4319.4,2.09035813]
[1760020468012,25.75730192,4319.5,4319.4,2.09035813]
[1760020468327,25.75730192,4319.5,4318.1,0.25]
[1760020468328,14.32621916,4319.5,4318.1,0.1397]
[1760020468481,2.31568299,4318.4,4318.1,0.1397]
[1760020468676,2.31577972,4318.2,4318.1,0.1397]
[1760020468880,9.12293542,4318.3,4318.1,0.1397]
[1760020469104,2.41397972,4318.2,4318.1,0.1397]
[1760020469710,0.0982,4318.2,4318.1,0.1397]
[1760020470023,9.12297972,4318.2,4318.1,0.1397]
[1760020470383,0.0982,4318.2,4318.1,0.1397]
[1760020470619,6.709,4318.2,4318.1,0.1397]
[1760020470819,6.8072,4318.2,4318.1,0.1397]
[1760020471137,2.39160717,4319.3,4318.1,0.1397]
[1760020471138,14.22801916,4318.6,4318.2,2.3157326]
[1760020471341,20.93701916,4318.6,4318.1,0.1397]
[1760020471652,0.0982,4318.5,4318.1,0.1397]
[1760020471863,2.31572609,4318.3,4318.1,0.1387]
[1760020472021,11.43277972,4318.2,4318.1,0.1387]
[1760020472217,23.35099888,4318.2,4318.1,0.1387]
[1760020472517,25.75899888,4318.2,4318.1,0.1387]
[1760020472959,26.39259888,4318.2,4318.1,1e-08]
[1760020473279,2.94948698,4318.0,4317.9,1e-08]
[1760020473431,4.86948698,4318.0,4317.9,1e-08]
[1760020473757,4.96668698,4318.0,4317.9,1e-08]
[1760020474966,2.94970153,4317.6,4317.5,0.16790353]
[1760020475137,11.58070153,4317.6,4317.5,0.16790353]
[1760020475337,11.58070153,4317.6,4315.0,0.005]
[1760020475338,2.31663809,4316.6,4315.0,0.005]
[1760020475543,25.76185725,4316.6,4315.0,0.005]
[1760020476072,0.0982,4317.3,4315.1,4.63547796]
[1760020476225,2.31663809,4316.6,4315.1,2.21597796]
[1760020476426,11.53383809,4316.6,4315.1,4.53337675]
[1760020476625,11.53383809,4316.6,4315.2,2.31738817]
[1760020476821,11.53383809,4316.6,4315.1,2.21597796]
[1760020477022,9.2172,4316.6,4315.1,2.21597796]
[1760020477276,11.53383809,4316.6,4315.1,2.21597796]
[1760020477424,11.53383809,4316.6,4315.1,0.31527982]
[1760020477425,1.92,4315.5,4315.1,0.31527982]
[1760020477624,0.0895,4315.2,4315.1,0.31427982]
[1760020478034,14.32521916,4315.7,4315.1,0.26427982]
[1760020478035,0.0885,4315.7,4315.1,0.26427982]
[1760020478253,6.711,4316.0,4315.1,0.26427982]
[1760020478478,14.22801916,4316.2,4315.2,2.57605016]
[1760020478783,20.94001916,4316.2,4315.3,0.02317335]
[1760020478945,6.712,4316.2,4315.3,0.02317335]
[1760020479277,0.0982,4316.1,4315.1,0.26427982]
[1760020479655,6.712,4316.0,4315.2,2.31738581]
[1760020479866,6.8005,4316.3,4315.1,0.26427982]
[1760020480069,2.3170026,4316.0,4315.1,0.26427982]
[1760020480276,9.02901505,4315.9,4315.1,0.26427982]
[1760020480582,6.712,4315.9,4315.1,0.26427982]
[1760020480949,0.0885,4316.3,4315.1,0.26427982]
[1760020481148,14.7009539,4316.9,4315.1,0.26427982]
[1760020481149,2.66,4316.7,4315.3,2.31733599]
[1760020481344,2.66,4316.7,4315.4,5.103]
[1760020481544,2.66,4316.7,4315.2,0.20867777]
[1760020481767,0.08449954,4315.7,4315.3,5.006]
[1760020482084,2.409,4317.3,4316.5,2.31666406]
[1760020482284,2.31600146,4317.8,4315.4,2.80492687]
[1760020482285,2.409,4318.1,4316.6,0.02316638]
[1760020482577,14.22801916,4319.0,4316.7,0.23399118]
[1760020482780,2.31534934,4319.1,4317.2,2.31630567]
[1760020482981,6.712,4319.4,4318.0,2.31588064]
[1760020483185,6.712,4319.4,4317.3,8.75916262]
[1760020483186,6.712,4319.4,4318.1,0.02315833]
[1760020483483,6.682,4320.0,4318.3,2.31572609]
[1760020483706,6.682,4320.0,4318.4,5.603]
[1760020483983,14.79101996,4320.6,4318.9,2.31535088]
[1760020483984,2.31480651,4320.1,4318.9,2.31535088]
[1760020484192,0.0982,4320.5,4318.4,2.78016537]
[1760020484193,2.31470152,4320.3,4318.4,2.78016537]
[1760020484412,0.0982,4320.5,4318.5,0.29999654]
[1760020484555,2.31460302,4320.4,4319.3,2.31516281]
[1760020484755,1.92,4320.5,4319.4,2.3151345]
[1760020485059,1.92,4320.5,4318.4,0.4645]
[1760020485060,2.31480061,4320.1,4318.4,2.78016088]
[1760020485263,2.31537882,4319.0,4314.6,0.78948345]
[1760020485468,2.31521768,4319.3,4314.6,0.78948345]
[1760020485469,2.31557413,4318.6,4316.2,0.465]
[1760020485679,14.22801916,4318.7,4317.3,2.31621584]
[1760020485866,0.0982,4318.6,4316.2,0.465]
[1760020486089,0.0982,4318.6,4316.9,2.31646616]
[1760020486304,0.0982,4318.6,4316.7,0.465]
[1760020486609,0.0982,4318.6,4316.8,0.2874]
[1760020486770,2.31600938,4317.8,4315.8,0.465]
[1760020486960,2.0182,4318.5,4316.2,2.603]
[1760020487157,2.3161006,4317.7,4315.8,0.465]
[1760020487359,0.0982,4318.4,4316.0,2.31695278]
[1760020487699,2.31595278,4317.9,4316.9,2.31647395]
[1760020487852,2.3158949,4318.0,4316.3,0.465]
[1760020488053,9.02678486,4318.2,4316.3,0.465]
[1760020488257,6.711,4318.2,4316.2,0.25367528]
[1760020488579,6.711,4318.2,4316.3,2.621]
[1760020488898,6.711,4318.2,4315.7,0.465]
[1760020488899,14.22801916,4318.0,4316.4,0.449]
[1760020489099,1.92,4318.1,4316.6,2.31662539]
[1760020489393,2.31599547,4317.8,4316.6,2.28979123]
[1760020489569,4.23583734,4318.1,4316.4,2.858]
[1760020489570,0.023166,4317.7,4316.4,2.858]
[1760020489764,14.22801916,4318.4,4317.1,2.31636291]
[1760020489765,0.023166,4318.0,4317.1,2.31636291]
[1760020489988,0.023166,4318.3,4317.2,2.43216316]
[1760020490283,0.023166,4318.3,4317.3,2.277]
[1760020490584,0.025166,4318.7,4317.3,2.30016262]
[1760020490757,0.002,4318.7,4318.1,2.31583315]
[1760020490958,0.002,4318.7,4318.2,2.31577639]
[1760020491168,0.002,4318.7,4317.4,1.16755321]
[1760020491387,2.31579415,4318.2,4316.7,0.465]
[1760020491551,0.023166,4318.1,4317.1,2.3163574]
[1760020491750,0.023166,4318.3,4316.7,0.465]
[1760020491965,0.1152,4317.2,4316.8,2.813]
[1760020492162,0.1152,4317.2,4316.9,5.939]
[1760020492404,0.1152,4317.2,4317.0,2.78142344]
[1760020492603,0.1152,4317.2,4317.1,2.33953347]
[1760020492767,14.22801916,4318.4,4317.6,2.31609064]
[1760020492967,14.22801916,4318.4,4317.0,0.465]
[1760020492968,2.31753071,4318.7,4317.7,6.87316047]
[1760020493158,0.002,4318.7,4317.7,6.85]
[1760020493356,0.002,4318.7,4317.8,0.7315]
[1760020493560,0.002,4318.7,4317.9,0.0231594]
[1760020493878,0.002,4318.7,4318.6,2.53696522]
[1760020494086,0.002,4318.7,4318.6,11.65596522]
[1760020494265,0.002,4318.7,4318.6,3.00196522]
[1760020494477,0.002,4318.7,4318.6,10.24372713]
[1760020494782,2.43449619,4322.3,4318.6,10.24372713]
[1760020494783,14.31651916,4322.0,4318.8,2.31545799]
[1760020494979,1.943166,4321.9,4318.9,0.465]
[1760020495293,14.22801916,4321.3,4318.9,0.465]
[1760020495452,14.22801916,4321.3,4318.6,0.2214]
[1760020495453,1.92,4320.5,4318.6,0.2214]
[1760020495654,0.023166,4320.4,4319.0,2.31534078]
[1760020495855,0.023166,4320.4,4319.6,2.3150155]
[1760020496058,0.023166,4320.8,4319.1,0.465]
[1760020496292,14.25118516,4320.8,4319.1,0.465]
[1760020496469,14.22801916,4320.8,4318.6,0.2214]
[1760020496792,0.023166,4320.7,4318.7,3.277]
[1760020497005,2.31424864,4321.1,4319.9,2.31485366]
[1760020497160,0.023166,4321.3,4320.5,2.31452598]
[1760020497356,2.40229691,4322.0,4320.3,5.1259]
[1760020497595,0.023166,4322.1,4320.8,2.3143413]
[1760020497763,0.023166,4322.4,4320.4,3.14099]
[1760020498087,2.313682,4322.2,4320.4,3.14099]
[1760020498387,0.0886,4322.5,4319.7,0.2204]
[1760020498388,14.22801916,4322.0,4319.7,0.2204]
[1760020498589,2.31412026,4321.3,4319.8,5.03]
[1760020499095,0.023166,4321.2,4319.9,8.08114868]
[1760020499272,2.31422599,4321.1,4319.9,10.37286289]
[1760020499470,2.31439049,4320.8,4319.9,8.058]
[1760020499858,0.1001,4321.6,4319.3,0.4609]
[1760020500084,14.26746908,4321.4,4319.4,9.115]
[1760020500279,2.31485205,4320.0,4318.9,2.31536355]
[1760020500479,0.023166,4320.2,4318.7,0.4609]
[1760020500698,0.023166,4320.4,4318.8,0.48405457]
[1760020500907,2.31465407,4320.3,4318.9,2.408]
[1760020501110,0.023166,4320.2,4318.1,0.4609]
[1760020501314,14.27290199,4319.8,4318.2,2.713]
[1760020501510,14.27290199,4320.9,4318.3,0.80033]
[1760020501808,0.023166,4320.8,4318.7,2.31551161]
[1760020502021,14.27290199,4321.1,4320.3,2.31463867]
[1760020502174,14.27290199,4320.5,4319.9,4.151]
[1760020502377,2.408,4321.8,4319.9,4.151]
[1760020502378,14.27290199,4321.6,4319.9,6.559]
[1760020502579,14.27290199,4322.7,4321.4,2.31401143]
[1760020502810,2.336637,4322.6,4321.4,2.31406488]
[1760020503121,14.27290199,4321.5,4320.0,1.34829115]
[1760020503327,0.1152,4321.3,4321.2,2.31417198]
[1760020503629,0.1152,4321.5,4320.8,0.1152]
[1760020503809,0.023166,4322.1,4321.0,2.31427289]
[1760020503977,0.1152,4321.1,4320.8,2.986]
[1760020504180,0.1152,4321.1,4319.7,0.4609]
[1760020504410,0.1152,4320.6,4319.8,8.4732]
[1760020504591,14.27290199,4320.9,4319.9,0.02314868]
[1760020504798,14.27290199,4320.9,4319.7,2.408]
[1760020504799,0.1152,4319.9,4319.7,9.114]
[1760020505117,0.1152,4319.9,4319.7,11.42895773]
[1760020505315,0.1152,4319.9,4318.5,2.31559326]
[1760020505493,0.1152,4319.9,4318.2,2.3157462]
[1760020505494,0.1152,4319.9,4319.1,0.1152]
[1760020505690,0.1152,4319.9,4319.8,2.31492198]
[1760020505891,2.43008519,4319.9,4319.1,0.1152]
[1760020506099,1.943166,4320.8,4318.9,0.498]
[1760020506100,0.023166,4319.8,4318.9,0.498]
[1760020506285,0.023166,4320.2,4319.0,0.0231535]
[1760020506631,14.29606799,4320.1,4319.1,4.289]
[1760020506786,11.552,4321.5,4317.5,0.4609]
[1760020506787,14.27290199,4319.5,4317.5,0.4609]
[1760020507091,2.33832934,4319.4,4317.6,3.936]
[1760020507292,0.0982,4319.6,4318.8,2.3154495]
[1760020507492,0.023166,4320.0,4318.7,2.31546833]
[1760020507705,2.31513028,4319.5,4317.7,0.4609]
[1760020507890,0.023166,4319.4,4318.8,2.31543203]
[1760020508093,0.023166,4319.4,4318.1,0.2204]
[1760020508311,0.022366,4319.8,4318.2,0.4609]
[1760020508514,0.022366,4319.8,4318.1,0.2204]
[1760020508515,2.31530009,4319.1,4318.1,3.175]
[1760020508715,0.021566,4319.0,4318.1,3.175]
[1760020508917,0.021566,4319.5,4318.1,3.4925]